Cogmind - Beta 16 @@@ ROGUE MODE // 2025.11.01 @ 16:04:48 Player: H3-MLN Result: Destroyed by Y-64 Sentinel with Wave Gun Performance ------------- Evolutions (5) 2500 Regions Visited (19) 3800 Robots Destroyed (317) 1585 Value Destroyed (11485) 11485 Prototype IDs (50) 1000 Alien Tech Used (0) 0 Bonus (7737) 7737 TOTAL SCORE: 28107 Bonus ------- Triggered High Security 500 High Alert Combat Kills 3097 Follower Combat Kills 3324 Entered Garrisons 200 Used RIF Installer 500 Entered DSFs 500 Registered with UFD 300 Friendly Fire -684 Cogmind --------- Core Integrity 0/1000 Matter 276/300 Energy 205/560 System Corruption 9% Temperature Hot (204) Movement Treading (158) Location -5/Factory Parts ------- > --- POWER (2) -------- Reinforced Fission Core Quantum Reactor > --- PROPULSION (5) --- Armored Medium Treads Biometal Heavy Treads Advanced Heavy Siege Treads > --- UTILITY (7) ------ High-capacity Storage Unit Enhanced Optical Array Core Analyzer Advanced Weapon Cycler (fused) Hacking Suite Relay Coupler [NC] (3) > --- WEAPON (3) ------- Enhanced Nova Cannon Heavy Linear Accelerator > --- INVENTORY (20) --- Quantum Reactor Quantum Reactor Improved Cooling System Energy Well (350) Improved Transmission Jammer Improved Medium Armor Plating Graphene Brace Authchip [Weapon] Relay Coupler [Heavy] (14) Compact HERF Cannon Compact HERF Cannon Enhanced Hardcell Cannon Heavy Shock Bomb Launcher Heavy Shock Bomb Launcher Improved Remote Datajack IN-MT5's Pitchfork "Insurrection" (18) IN-MT5's Pitchfork "Insurrection" (6) Peak State ------------ > --- POWER ------------ Quantum Reactor Quantum Reactor > --- PROPULSION ------- Armored Medium Treads Biometal Heavy Treads Advanced Heavy Siege Treads > --- UTILITY ---------- Improved Cooling System Improved Cooling System High-capacity Storage Unit Advanced Signal Interpreter Core Analyzer Advanced Weapon Cycler Hacking Suite > --- WEAPON ----------- Compact HERF Cannon Enhanced Nova Cannon Enhanced Hardcell Cannon > --- INVENTORY -------- Quantum Reactor Quantum Reactor Advanced Heavy Siege Treads Energy Well Hardened Medium Armor Plating Damper Plating Compact HERF Cannon Compact HERF Cannon Hypervelocity Coil Gun Hypervelocity Coil Gun Heavy Linear Accelerator Heavy Shock Bomb Launcher Improved Remote Datajack IN-MT5's Pitchfork "Insurrection" IN-MT5's Pitchfork "Insurrection" [Rating: 128] Favorites ----------- Power Cooled Ion Engine Engine Cooled Ion Engine Power Core Light Nuclear Core Reactor Antimatter Reactor Propulsion Wheel Treads Heavy Treads Leg VSS Leg Wheel Wheel Hover Unit Improved Gravmag System Flight Unit Improved VTOL Module Utility Huge Storage Unit Device Improved Cooling System Storage Huge Storage Unit Processor Advanced Signal Interpreter Hackware Hacking Suite Protection Light Armor Plating Weapon Thermic Laser Energy Gun Thermic Laser Energy Cannon Cooled Particle Cannon Ballistic Gun Assault Rifle Ballistic Cannon Enhanced Hardcell Cannon Launcher Heavy Shock Bomb Launcher Special Weapon Improved Remote Datajack Impact Weapon Powered Hammer Slashing Weapon Carbide Saw Piercing Weapon Enhanced Force Lance Special Melee Weapon Datajack Build | -11 -10 -10 -9 -9 -9 -8 -8 -8 -8 -8 -6 -6 -6 -6 -5 -5 -5 -5 -5 ------- Run | Yrd Mat Min Mat Min Exi Min Mat Sto Rec Scr Fac Was Fac DSF Fac Was Fac Gar Fac Slots Evolved 10 | . . . 2 . . . 2 . . . 4 . . . 2 . . . . Power 1 | . . . . . . . . . . . . . . . 1 . . . . Propulsion 3 | . . . . . . . 1 . . . 1 . . . 1 . . . . Utility 5 | . . . 1 . . . 1 . . . 3 . . . . . . . . Weapon 1 | . . . 1 . . . . . . . . . . . . . . . . Parts Attached 237 | 7 7 4 25 3 1 1 34 15 3 6 9 3 5 3 54 10 19 21 7 Power 27 | 1 1 . 4 . . . 3 2 . 1 . . 1 . 6 2 3 3 . Engine 16 | 1 1 . 4 . . . 2 2 . . . . 1 . 4 . 1 . . Core 5 | . . . . . . . 1 . . 1 . . . . 2 . . 1 . Reactor 6 | . . . . . . . . . . . . . . . . 2 2 2 . Propulsion 49 | 2 . 1 5 1 . . 8 3 . 1 2 1 . 2 12 3 3 4 1 Treads 14 | 1 . . 2 . . . 2 . . . . . . . . 2 2 4 1 Leg 2 | . . . . . . . . . . . 1 . . . . 1 . . . Wheel 16 | 1 . 1 3 1 . . 5 2 . . . . . . 2 . 1 . . Hover 10 | . . . . . . . . . . . . . . . 10 . . . . Flight 7 | . . . . . . . 1 1 . 1 1 1 . 2 . . . . . Utility 81 | 2 3 1 6 . . . 10 3 1 4 5 . 3 1 18 5 7 8 4 Device 30 | 1 . . 4 . . . 5 1 . . 2 . 1 . 8 2 3 3 . Storage 8 | 1 2 . 1 . . . . . . . . . 1 . 1 1 . 1 . Processor 10 | . . . . . . . . . . . 2 . . . 4 . 1 2 1 Hackware 11 | . . . . . . . . . . 2 1 . . . 3 . 3 . 2 Protection 22 | . 1 1 1 . . . 5 2 1 2 . . 1 1 2 2 . 2 1 Artifact . | . . . . . . . . . . . . . . . . . . . . Weapon 80 | 2 3 2 10 2 1 1 13 7 2 . 2 2 1 . 18 . 6 6 2 Energy Gun 8 | . . . 1 . . . 2 . . . . 1 . . 4 . . . . Energy Cannon 7 | . . . 1 . . . 2 . . . . . . . . . . 4 . Ballistic Gun 37 | 2 2 . 7 1 . 1 9 4 . . . . . . 7 . 4 . . Ballistic Cannon 8 | . . 2 . . . . . . . . . . . . 3 . 1 2 . Launcher 6 | . 1 . . 1 . . . 2 . . . . . . 1 . . . 1 Special Weapon 6 | . . . . . . . . . . . 1 . . . 3 . 1 . 1 Impact Weapon 3 | . . . . . 1 . . 1 1 . . . . . . . . . . Slashing Weapon 1 | . . . . . . . . . . . . . 1 . . . . . . Piercing Weapon 2 | . . . . . . . . . . . 1 1 . . . . . . . Special Melee Weapon 2 | . . . 1 . . . . . 1 . . . . . . . . . . Unidentified Prototypes 16 | . . . 5 . . . 3 2 . . 1 1 . . 3 1 . . . Parts Lost 75 | . 2 5 10 1 . . 18 3 . 1 2 . . 5 21 . 4 . 3 Power 10 | . 1 1 1 . . . 1 . . . . . . 1 3 . 2 . . Propulsion 26 | . . 1 4 1 . . 6 2 . . . . . 2 8 . 1 . 1 Utility 20 | . . 1 3 . . . 5 1 . . 1 . . 2 5 . 1 . 1 Weapon 19 | . 1 2 2 . . . 6 . . 1 1 . . . 5 . . . 1 Highest Loss Streak 10 | . 2 5 4 1 . . 10 3 . 1 1 . . 5 9 . 2 . 1 To Critical Strikes . | . . . . . . . . . . . . . . . . . . . . Average Backups 17 | 2 9 14 18 23 24 23 23 24 25 20 4 5 5 7 6 13 15 15 17 Power . | . . . . 2 2 2 . . . . . . . . . . . 1 2 Propulsion 1 | 1 2 3 3 3 3 3 3 3 3 2 . . . 1 . . . . . Utility 7 | . 2 5 7 10 11 11 8 10 11 9 2 3 4 4 2 6 7 5 7 Weapon 6 | . 4 6 6 7 7 6 9 9 9 7 . . . . 3 5 7 7 6 Tool/Special . | . . . . . . . . . . . . . . . . . . . . Unused Backups 56 | . 1 2 . 1 . . 3 5 1 16 . . . 2 3 2 3 8 9 Power 3 | . . . . . . . . . . . . . . . . . . 1 2 Propulsion 2 | . . . . . . . 1 . . 1 . . . . . . . . . Utility 29 | . . . . 1 . . . 2 1 9 . . . 1 . 2 3 5 5 Weapon 21 | . 1 2 . . . . 2 3 . 6 . . . . 3 . . 2 2 Tool/Special 1 | . . . . . . . . . . . . . . 1 . . . . . Average Slot Usage (%) 88 | . 99 97 92 99 87 99 87 99 100 96 80 86 84 43 59 82 83 89 81 Engine 6 | . 14 12 10 11 11 11 4 6 9 6 . . . . 4 4 3 . . Core 1 | . . . . . . . 3 2 . 1 6 6 5 1 1 . . 2 5 Reactor 2 | . . . . . . . . . . . . . . . . 6 7 8 5 Treads 6 | . 14 12 7 . . . 3 . . . . . . . . 6 13 19 17 Wheel 11 | . 14 15 14 21 22 22 19 26 27 20 . . . . . . . . . Hover 1 | . . . . . . . . . . . . . . . 17 6 . . . Flight 1 | . . . . . . . . . . 6 24 26 26 12 . . . . . Device 11 | . 9 . 10 11 11 11 14 18 18 14 1 7 6 1 5 12 12 16 10 Storage 7 | . 14 14 11 11 11 11 9 9 9 6 . . 1 2 2 5 5 5 5 Processor 5 | . . . . . . . . . . . 6 13 13 9 10 17 15 11 11 Hackware 2 | . . . . . . . . . . 2 16 20 20 9 . . 3 5 7 Protection 5 | . 4 13 5 11 11 11 6 9 9 10 10 4 3 . 2 2 2 . 2 Energy Gun 2 | . . . . . . . 3 . . . . . . . 6 17 4 . . Energy Cannon 2 | . . . 5 . . . . 8 9 6 . . . . . . . 4 2 Ballistic Gun 12 | . 27 26 25 29 . 30 21 18 12 6 . . . . 1 . 7 7 . Ballistic Cannon 1 | . . 1 . . . . . . . . . . . . 1 . 1 3 5 Impact Weapon 1 | . . . . . 10 . . . 3 9 4 . . . . . . . . Peak Build Rating 128 | 9 10 9 22 22 19 22 33 37 34 35 54 62 59 59 93 97 105 128 122 Average Rating 50 | 6 8 8 16 21 16 21 26 32 33 33 46 55 52 27 50 88 98 114 117 On Entrance 40 | . 9 8 7 20 22 17 22 29 34 34 34 54 54 51 18 89 94 96 120 Avg Prop Armor Cover (%) 8 | 13 11 9 8 . . . 6 . . . . . . . 8 . 1 . . Naked Turns . | . . . . . . . . . . . . . . . . . . . . Heaviest Build 131 | 12 50 50 103 104 97 103 110 109 109 108 16 22 19 24 52 109 131 123 131 Greatest Support 182 | 16 20 32 40 28 28 28 32 32 32 32 18 18 19 19 57 160 167 182 182 Greatest Overweight (x) 8 | . 3 3 8 4 3 3 8 4 3 3 . 1 . 1 5 1 . . . Average Overweight (x) 1 | . 1 2 5 3 3 3 3 3 3 1 . . . . . . . . . Largest Inventory Capacity 25 | 8 20 20 25 25 25 25 25 25 25 25 5 5 10 10 10 20 20 20 20 Average Capacity 19 | 7 13 20 23 25 25 25 25 25 25 20 5 5 6 7 7 19 20 20 20 Most Carried 25 | 4 15 20 25 25 25 25 25 25 25 25 5 5 10 10 10 20 20 20 20 Average Carried 18 | 2 9 17 20 24 24 24 23 24 24 20 4 4 5 6 6 15 19 19 19 Final Capacity 25 | 8 20 20 25 25 25 25 25 25 25 5 5 5 10 5 10 20 20 20 20 Final Carried 25 | 4 15 14 25 25 25 24 25 25 25 5 5 5 10 3 10 20 18 20 17 Class Distribution -------------------- 18% | Gunner 17% | Mutant 17% | Tank 16% | Scavenger-Tank 12% | Commander-Mutant 4% | Skirmisher 3% | Commander-Sprinter Dominant Class ---------------- Mutant | -10/Materials Mutant | -10/Mines Tank | -9/Materials Tank | -9/Mines Mutant | -9/Exiles Tank | -8/Mines Gunner | -8/Materials Tank | -8/Storage Commander-Mutant | -8/Recycling Commander-Mutant | -8/Scraptown Hacker-Sprinter | -6/Factory Hacker-Scout | -6/Waste Hacker-Scout | -6/Factory Hacker-Scout | -6/DSF Mutant | -5/Factory Scavenger-Tank | -5/Waste Scavenger-Tank | -5/Factory Gunner | -5/Garrison Gunner | -5/Factory Resources | -11 -10 -10 -9 -9 -9 -8 -8 -8 -8 -8 -6 -6 -6 -6 -5 -5 -5 -5 -5 ----------- Run | Yrd Mat Min Mat Min Exi Min Mat Sto Rec Scr Fac Was Fac DSF Fac Was Fac Gar Fac Matter Collected 10000 | 290 247 197 1009 161 . 217 1729 910 470 90 52 108 103 38 898 198 1167 985 1131 Remotely . | . . . . . . . . . . . . . . . . . . . . Salvage Created 13817 | 101 353 311 1675 188 . 382 1824 1655 201 461 60 . 43 19 996 297 1966 1557 1728 Parts 680 | 12 25 20 101 13 . 15 107 93 6 7 . . 9 3 36 1 75 102 55 Haulers Intercepted 13 | . 1 . 3 . . . 4 2 . . . . . . 2 . 1 . . Recyclers Shooed 9 | . . . 2 . . . 2 1 . . . . . . 1 . 3 . . Parts Field Recycled . | . . . . . . . . . . . . . . . . . . . . Retrieved Matter . | . . . . . . . . . . . . . . . . . . . . Parts Self-Destructed . | . . . . . . . . . . . . . . . . . . . . Prevented . | . . . . . . . . . . . . . . . . . . . . Parts Restored 1 | . . . . . . . . . . . . 1 . . . . . . . Broken 1 | . . . . . . . . . . . . 1 . . . . . . . Kills | -11 -10 -10 -9 -9 -9 -8 -8 -8 -8 -8 -6 -6 -6 -6 -5 -5 -5 -5 -5 ------- Run | Yrd Mat Min Mat Min Exi Min Mat Sto Rec Scr Fac Was Fac DSF Fac Was Fac Gar Fac Combat Hostiles Destroyed 214 | . 9 9 31 7 . 4 27 28 1 . 1 . . 1 13 . 18 30 35 Melee 3 | . . . . . . . . . . . 1 . . 1 . . . 1 . Guns 98 | . 3 6 15 4 . 4 27 10 1 . . . . . 7 . 6 15 . Cannons 77 | . . 2 15 . . . . 14 . . . . . . 3 . 8 12 23 AOE 29 | . 6 1 . 3 . . . 3 . . . . . . 2 . 4 2 8 Classes Destroyed 22 | 2 6 1 4 . . 1 1 . . 2 . . . 1 1 . . 3 . Worker 29 | . 3 . 3 . . . 8 3 . . . . . . 3 . 4 2 3 Builder 14 | . . . . . . . 2 4 . . . . 2 . 1 . 4 . 1 Tunneler 6 | 2 . . 1 . . . 2 . . . . . . . 1 . . . . Hauler 13 | . 1 . 3 . . . 4 2 . . . . . . 2 . 1 . . Recycler 18 | 1 1 . 2 . . 2 2 1 2 . . . . . 2 . 5 . . Mechanic 2 | . . . 1 . . . 1 . . . . . . . . . . . . Operator 8 | . 2 . 3 . . . . 2 . . . . 1 . . . . . . Watcher 7 | . 1 . 1 . . . 2 1 . . 1 . . . 1 . . . . Swarmer 44 | . 6 . 7 3 . . 3 . . . 1 . . . 7 . . 12 5 Cutter 1 | . . . . . . . . . . . . . . 1 . . . . . Saboteur 1 | . . . . . . . . . . . . . . . . . . 1 . Grunt 107 | . 3 7 14 3 . 3 21 13 . 3 . . . . 3 . 9 7 21 Brawler 8 | . . . 1 1 . . . 1 . 1 . . . . . . 2 . 2 Duelist 2 | . . . 1 . . . . . . 1 . . . . . . . . . Sentry 34 | . . . 8 . . . 2 13 1 1 . . . . . . 1 5 3 Demolisher 2 | . . 2 . . . . . . . . . . . . . . . . . Hunter 9 | . . . . . . 1 1 1 . . . . . . . . 3 1 2 Programmer 9 | . . . . . . . . . . . . . . . 3 . 3 1 2 Heavy 1 | . . . . . . . . . . . . . . . . . . 1 . Behemoth 2 | . . . . . . . . . . . . . . . . . . 2 . Scientist 4 | . . . . . . . . . . 4 . . . . . . . . . Tinkerer 3 | . . . . . . . . . . 3 . . . . . . . . . Best Kill Streak 10 | 2 8 3 6 3 . 3 5 10 2 4 2 . 1 1 6 . 6 4 9 Combat Bots Only 8 | . 6 3 6 3 . 2 4 4 1 . 1 . . 1 4 . 4 4 8 Max Kills in Single Turn 4 | 1 4 1 2 2 . 1 2 4 1 2 1 . 1 1 2 . 2 2 3 Gunslinging 1 | . . . 1 . . . 1 . . . . . . . 1 . . . . Exploded 3 | . 3 1 . 2 . . . 2 . . . . . . 2 . 1 2 2 Melee 1 | . . . . . . . . . . . 1 . . 1 . . . 1 . Uniques/NPCs Destroyed . | . . . . . . . . . . . . . . . . . . . . Combat | -11 -10 -10 -9 -9 -9 -8 -8 -8 -8 -8 -6 -6 -6 -6 -5 -5 -5 -5 -5 -------- Run | Yrd Mat Min Mat Min Exi Min Mat Sto Rec Scr Fac Was Fac DSF Fac Was Fac Gar Fac Hostile Shots Fired 1188 | . 33 43 151 16 . 19 217 105 2 27 23 . . 72 139 . 85 85 171 Missed 355 | . 8 17 32 7 . 4 38 47 . 12 9 . . 19 60 . 31 24 47 Hits 833 | . 25 26 119 9 . 15 179 58 2 15 14 . . 53 79 . 54 61 124 Melee 40 | . . . 4 2 . . . . . . . . . 32 . . . 1 1 Projectile 793 | . 25 26 115 7 . 15 179 58 2 15 14 . . 21 79 . 54 60 123 AOE 9 | . . 6 1 . . . . . . . . . . 1 1 . . . . Critical Strikes 50 | . . 1 3 . . 2 6 1 . 1 . . . 16 6 . 3 2 9 Part Disruptions 2 | . . . . . . . . . . . . . . . . . . . 2 Damage Taken 15377 | . 283 625 1475 124 . 251 3327 691 33 283 312 . . 1092 1850 . 1007 1212 2812 Core 2808 | . 50 143 161 12 . 75 373 107 . 42 77 . . 756 442 . 133 210 227 Absorbed by Shields 745 | . . . . . . . 90 267 12 . . . . 6 . . 95 275 . Regen/Repaired (Parts) 503 | . . . 96 . . . 50 80 . 59 . . . . . . . . 218 Core Remaining (%) 33 | 100 . 22 . . . 38 . . . 5 . . . 2 . . . . . Volleys Fired 757 | 12 22 28 103 13 . 15 171 92 5 . . . . . 59 4 91 63 79 Largest 3 | 2 2 2 3 3 . 3 3 3 3 . . . . . 3 3 3 3 2 Hottest 255 | 40 40 60 111 69 . 69 114 90 83 . . . . . 255 255 255 246 190 Shots Fired 1713 | 24 39 56 274 35 . 45 426 240 15 . . . . . 114 11 173 150 111 Gun 1260 | 24 34 45 204 33 . 45 406 152 10 . . . . . 90 11 127 79 . Cannon 387 | . . 11 70 . . . 20 82 5 . . . . . 16 . 30 68 85 Launcher 42 | . 5 . . 2 . . . 6 . . . . . . 3 . 11 3 12 Special 24 | . . . . . . . . . . . . . . . 5 . 5 . 14 Kinetic 1229 | 24 34 56 216 33 . 45 353 152 10 . . . . . 45 . 95 104 62 Thermal 407 | . . . 58 . . . 70 82 5 . . . . . 61 11 62 35 23 Explosive 13 | . 5 . . 2 . . . 6 . . . . . . . . . . . Electromagnetic 40 | . . . . . . . 3 . . . . . . . 3 . 11 11 12 Piercing 6 | . . . . . . . . . . . . . . . 3 . 2 . 1 Robot Hit Streak 18 | 5 5 11 12 12 . 12 12 13 4 . . . . . 18 14 17 10 10 Robot Miss Streak 8 | 1 3 4 4 2 . 2 5 8 1 . . . . . 3 . 5 4 3 Penetration Max 2 | . . . . . . . . . . . . . . . . . 2 1 1 Secondary Targets 21 | . 1 3 3 1 . . 5 . . . . . . . 2 . 1 5 . Max Gunslinging Chain 1 | . 1 1 1 1 . . 1 . . . . . . . 1 . 1 1 . Shots Hit Robots 1083 | 16 24 34 157 23 4 32 252 145 35 12 6 . 3 4 73 11 104 79 69 Core Hits 532 | 4 27 18 63 10 . 15 101 90 3 2 . . 2 1 32 2 63 51 48 Critical Kills 14 | . . . 1 . . . . 1 . . . . . . . . 3 8 1 Critical Parts Destroyed 19 | . . 1 1 . . . 1 1 . 1 . . . . . . 7 7 . Critical Strikes 81 | . . 1 2 . . . 3 2 . 1 . . 1 1 16 4 29 18 3 Burn 32 | . . . . . . . 1 . . . . . . . 13 4 14 . . Meltdown 3 | . . . 1 . . . . 1 . . . . . . . . . . 1 Destroy 31 | . . 1 1 . . . 2 1 . . . . . . . . 11 15 . Blast 10 | . . . . . . . . . . . . . . . 1 . 4 3 2 Smash 1 | . . . . . . . . . . 1 . . . . . . . . . Impale 4 | . . . . . . . . . . . . . 1 1 2 . . . . Melee Attacks 87 | . . . 1 . 4 . . . 24 18 18 . 11 11 . . . . . Impact 30 | . . . . . . . . . 2 17 11 . . . . . . . . Slashing 5 | . . . . . . . . . . . . . 1 4 . . . . . Piercing 24 | . . . . . . . . . . . 7 . 10 7 . . . . . Sneak Attacks 40 | . . . 1 . 4 . . . 23 10 . . 2 . . . . . . Combat Hostiles . | . . . . . . . . . . . . . . . . . . . . Follow-up Attacks . | . . . . . . . . . . . . . . . . . . . . Damage Inflicted 28415 | 170 657 469 2492 496 . 455 3856 3834 306 897 278 . 319 136 2339 198 4032 2508 4973 Guns 12223 | 170 257 343 1482 351 . 455 3628 1603 162 . . . . . 1155 198 1576 843 . Cannons 10242 | . . 121 1010 . . . 228 1454 55 . . . . . 457 . 1741 1405 3771 Explosions 4142 | . 400 5 . 145 . . . 777 . . . . . . 692 . 715 247 1161 Melee 1711 | . . . . . . . . . 89 894 278 . 319 131 . . . . . Ramming 62 | . . . . . . . . . . 3 . . . 5 . . . 13 41 Kinetic 15839 | 170 257 464 1646 351 . 455 3201 1603 162 . . . . . 786 . 2398 1334 3012 Thermal 6589 | . . 5 846 . . . 647 1454 55 . . . . . 826 198 919 809 830 Explosive 1666 | . 400 . . 145 . . . 777 . . . . . . 344 . . . . Electromagnetic 2513 | . . . . . . . 8 . . . . . . . 348 . 715 352 1090 Impact 1174 | . . . . . . . . . 89 894 191 . . . . . . . . Slashing 22 | . . . . . . . . . . . . . . 22 . . . . . Piercing 550 | . . . . . . . . . . . 87 . 319 109 35 . . . . Highest Corruption 9 | . . . 3 5 5 5 . . . . . . . . 5 5 6 6 9 Average Corruption 5 | . . . 2 3 5 5 . . . . . . . . 4 5 5 6 7 Corruption Purged . | . . . . . . . . . . . . . . . . . . . . Corruption Blocked 2 | . . . . . . . . . . . . . . . . . 2 . . Effects 190 | . . . 4 15 7 4 . . . . . . . . 23 23 53 33 28 Message Errors 43 | . . . 3 4 . . . . . . . . . . 3 5 14 7 7 Matter Fused 40 | . . . . 3 2 2 . . . . . . . . 4 7 8 10 4 Heat Flow Errors 21 | . . . . 1 . . . . . . . . . . 4 3 5 5 3 Energy Discharges 29 | . . . . 4 2 1 . . . . . . . . 2 3 11 2 4 Parts Rejected 4 | . . . . . . . . . . . . . . . 1 . 2 . 1 Parts Fused 2 | . . . . . . . . . . . . . . . . . . 1 1 Data Loss (minor) 18 | . . . 1 . 2 . . . . . . . . . 5 1 6 2 1 Data Loss (major) 16 | . . . . 2 1 1 . . . . . . . . 3 3 1 3 2 Misfires 6 | . . . . . . . . . . . . . . . . . 3 1 2 Alerts 9 | . . . . 1 . . . . . . . . . . . . 3 2 3 Weapon Failures 2 | . . . . . . . . . . . . . . . 1 1 . . . Overload Shots 3 | . . . . . . . 1 2 . . . . . . . . . . . Overflow Damage 1406 | . . 14 10 . . . . 16 24 531 44 . 69 . 8 . 342 58 290 Projectiles 771 | . . 14 10 . . . . . . 88 . . . . . . 340 45 274 Explosions 55 | . . . . . . . . 16 . . . . . . 8 . 2 13 16 Melee 580 | . . . . . . . . . 24 443 44 . 69 . . . . . . Knockbacks 29 | . . 2 . . . . . . . 7 1 . . . 4 . 8 1 6 Impact 5 | . . . . . . . . . . 4 1 . . . . . . . . Kinetic 18 | . . 2 . . . . . . . . . . . . 4 . 5 1 6 Secondary 6 | . . . . . . . . . . 3 . . . . . . 3 . . Self-Inflicted Damage 545 | . 69 71 . . . . . 29 . 1 . . . 2 149 . 19 90 115 Shots 17 | . 3 2 . . . . . 1 . . . . . . 2 . 1 3 5 Rammed 7 | . . . . . . . . . . 1 . . . 1 . . . . 5 Targets Rammed 8 | . . . . . . . . . . 1 . . . 1 . . . 1 5 Kicked . | . . . . . . . . . . . . . . . . . . . . Crushed 1 | . . . . . . . . . . . . . . . . . . 1 . Highest Temperature 451 | . 4 44 234 248 . 109 348 12 . 42 2 . . . 326 264 451 220 450 Average Temperature 80 | . 2 12 66 86 . 45 81 6 . 23 2 . . . 98 61 75 68 122 Received Heat Transfer 4165 | . 36 174 483 45 . 108 1397 277 12 97 18 . . . 462 . 118 127 811 Effects 9 | . . . . . . . 3 . . . . . . . 1 . 2 . 3 Shutdowns 2 | . . . . . . . . . . . . . . . . . 1 . 1 Energy Bleed 1 | . . . . . . . . . . . . . . . 1 . . . . Interference 4 | . . . . . . . 2 . . . . . . . . . . . 2 Short Circuit 1 | . . . . . . . 1 . . . . . . . . . . . . Damage (minor) 1 | . . . . . . . . . . . . . . . . . 1 . . Siege Activations . | . . . . . . . . . . . . . . . . . . . . Martial Activations . | . . . . . . . . . . . . . . . . . . . . Shielding Activations . | . . . . . . . . . . . . . . . . . . . . Robots Disrupted . | . . . . . . . . . . . . . . . . . . . . Combat Hostiles . | . . . . . . . . . . . . . . . . . . . . Robots Corrupted 14 | . . . . . . . . . 1 7 1 . . . . . 1 1 3 Combat Hostiles 3 | . . . . . . . . . . . . . . . . . . . 3 Parts Fried 19 | . . . . . . . . . . 8 1 . . . . . 2 . 8 Impact Corruptions 25 | . . . . . . . . . 1 21 2 . . . . . 1 . . Robots Melted 9 | . . . 1 . . . . 1 . . . . . . 3 1 2 . 1 Combat Hostiles 5 | . . . 1 . . . . 1 . . . . . . 1 1 . . 1 Parts Melted 32 | . . . 4 . . . . 2 . . . . . . 9 2 10 1 4 Heat Transferred 14599 | . . 50 1480 . . . 1202 1998 74 . . . . . 3450 950 3900 729 766 Parts Sabotaged . | . . . . . . . . . . . . . . . . . . . . Parts Stolen . | . . . . . . . . . . . . . . . . . . . . Parts Stripped . | . . . . . . . . . . . . . . . . . . . . Power Chain Reactions 6 | . . 1 . . . . . . . . . . . . . . . 2 3 Alert | -11 -10 -10 -9 -9 -9 -8 -8 -8 -8 -8 -6 -6 -6 -6 -5 -5 -5 -5 -5 ------- Run | Yrd Mat Min Mat Min Exi Min Mat Sto Rec Scr Fac Was Fac DSF Fac Was Fac Gar Fac Maximum Alert Level 5 | . 1 . 1 . . . . 2 1 . . . . . 2 1 3 5 5 Low Security (%) 56 | 100 96 100 51 100 . 100 100 47 26 . 100 100 100 100 49 95 28 . . Level 1 15 | . 3 . 48 . . . . 20 73 . . . . . 9 4 21 . . Level 2 10 | . . . . . . . . 31 . . . . . . 40 . 33 1 . Level 3 3 | . . . . . . . . . . . . . . . . . 16 11 . Level 4 6 | . . . . . . . . . . . . . . . . . . 31 55 Level 5 6 | . . . . . . . . . . . . . . . . . . 55 7 High Security 2 | . . . . . . . . . . . . . . . . . . . 36 Max Security . | . . . . . . . . . . . . . . . . . . . . Peak Influence 2531 | 5 219 167 365 145 . 55 192 549 278 . 100 28 23 20 619 215 919 2531 2460 Initial 1328 | . . 67 9 126 . . 3 76 208 . . 28 . 7 10 215 . 627 1328 Average 431 | 1 81 65 201 68 . 18 82 270 223 . 38 9 3 10 285 58 398 1744 1677 Influence Increases 10617 | 15 331 256 969 179 . 125 894 1030 150 . 154 . 83 20 1405 . 1616 1944 1446 Destroy 0b10 Robot/C 5840 | . 180 180 620 140 . 80 540 560 40 . 20 . . 20 660 . 960 920 920 Destroy 0b10 Robot/NC 505 | 15 40 . 70 . . 10 105 65 10 . 5 . 15 . 60 . 95 . 15 Destroy Leader 1128 | . 44 40 158 30 . 20 132 176 . . 2 . . . 140 . 216 30 140 Allied During Kill 801 | . . . . . . . . . 37 . . . . . 127 . 187 388 62 Trap Triggered on 0b10 40 | . . . . . . . . . . . . . 20 . 20 . . . . Successful Hack 187 | . 13 . 37 . . . 17 29 . . 30 . 10 . 17 . 18 12 4 Select Force Hacks 90 | . 30 . . . . . . . 60 . . . . . . . . . . Disable Machine 495 | . . . 15 . . . . 90 . . 15 . . . 105 . 60 60 150 Anti-Garrison Action 400 | . . . . . . . . . . . . . . . . . . 400 . Destroy Structure 531 | . 24 6 9 9 . . 10 65 3 . 7 . 8 . 66 . 50 134 140 Partial Spotted 45 | . . . . . . . . 15 . . . . 30 . . . . . . Lose Combat Pursuer 555 | . . 30 60 . . 15 90 30 . . 75 . . . 210 . 30 . 15 Influence Decreases 8167 | 15 156 407 668 504 . 115 721 679 532 152 73 81 72 11 810 615 719 310 1527 Entered New Map 2854 | . . 108 15 199 . . 7 107 326 152 . 53 . 4 10 400 . 270 1203 Time Decay 4152 | 15 136 249 563 295 . 115 536 392 206 . 50 28 72 . 490 215 536 . 254 Lost Part 655 | . 20 50 90 10 . . 178 30 . . 10 . . 7 190 . 40 . 30 Lost Ally 356 | . . . . . . . . . . . 13 . . . 120 . 143 40 40 Purge Threat 150 | . . . . . . . . 150 . . . . . . . . . . . Squads Dispatched 68 | . 2 . 3 . . . 11 7 . . 3 . . 1 13 . 14 . 14 Investigation 21 | . 1 . . . . . 6 1 . . 3 . . . 6 . 3 . 1 Extermination 10 | . . . . . . . . . . . . . . . 4 . 5 . 1 Reinforcement 17 | . 1 . 3 . . . 2 3 . . . . . 1 3 . 3 . 1 Assault 14 | . . . . . . . 2 . . . . . . . . . 2 . 10 Garrison 6 | . . . . . . . 1 3 . . . . . . . . 1 . 1 Intercept . | . . . . . . . . . . . . . . . . . . . . Searches Triggered . | . . . . . . . . . . . . . . . . . . . . Construction Impeded 4 | . . . . . . . 1 1 . . . . . . . . 2 . . Haulers Reinforced 2 | . . . . . . . . . . . . . . . 2 . . . . Active Scanning Responses . | . . . . . . . . . . . . . . . . . . . . Cargo Convoy Interrupts . | . . . . . . . . . . . . . . . . . . . . Stealth | -11 -10 -10 -9 -9 -9 -8 -8 -8 -8 -8 -6 -6 -6 -6 -5 -5 -5 -5 -5 --------- Run | Yrd Mat Min Mat Min Exi Min Mat Sto Rec Scr Fac Was Fac DSF Fac Was Fac Gar Fac Distress Signals 18 | . . . 1 . . 1 6 3 . . . . . . 4 . 1 . 2 Communications Jammed . | . . . . . . . . . . . . . . . . . . . . Distress Signals . | . . . . . . . . . . . . . . . . . . . . Times Spotted 425 | . 13 12 40 7 . 5 46 37 2 16 10 . 1 5 57 . 57 44 73 Peak Tracking Total 20 | . 4 3 5 3 . 2 6 6 1 20 6 . 1 4 10 . 7 6 14 Tactical Retreats 25 | . . 2 4 . . 1 4 2 . . 2 . . . 7 . 2 . 1 Traps | -11 -10 -10 -9 -9 -9 -8 -8 -8 -8 -8 -6 -6 -6 -6 -5 -5 -5 -5 -5 ------- Run | Yrd Mat Min Mat Min Exi Min Mat Sto Rec Scr Fac Was Fac DSF Fac Was Fac Gar Fac Traps Triggered 19 | . 1 2 2 . . . . 1 . . 2 . 1 1 5 . . 1 3 Indirectly . | . . . . . . . . . . . . . . . . . . . . Trap Hack Attempts 47 | . . . 47 . . . . . . . . . . . . . . . . Triggered . | . . . . . . . . . . . . . . . . . . . . Disarmed . | . . . . . . . . . . . . . . . . . . . . Reprogrammed 4 | . . . 4 . . . . . . . . . . . . . . . . Reused 4 | . . . . . . . . . . . . . 2 . 2 . . . . Traps Extracted 5 | . . . 4 . . . . . . . . . 1 . . . . . . Installed 7 | . . 1 . . . . . . . 1 . . 3 . 2 . . . . Triggered 4 | . . . . . . . . . . . . . 2 . 2 . . . . Most Traps Carried 5 | . . 4 5 5 5 5 5 4 4 5 4 4 4 2 2 . . . . Machines | -11 -10 -10 -9 -9 -9 -8 -8 -8 -8 -8 -6 -6 -6 -6 -5 -5 -5 -5 -5 ---------- Run | Yrd Mat Min Mat Min Exi Min Mat Sto Rec Scr Fac Was Fac DSF Fac Was Fac Gar Fac Machines Disabled 46 | . . . 1 . . . . 6 . 5 1 . . . 7 . 4 12 10 Max in Single Turn 2 | . . . 1 . . . . 1 . 1 1 . . . 2 . 1 2 2 Garrison Access 3 | . . . . . . . 1 . . . . . 1 . 1 . . . . Garrison Relay 5 | . . . . . . . . . . . . . . . . . . 5 . Phase Generator 1 | . . . . . . . . . . . . . . . . . . 1 . Machines Repaired . | . . . . . . . . . . . . . . . . . . . . Machines Dismantled . | . . . . . . . . . . . . . . . . . . . . Machines Sabotaged . | . . . . . . . . . . . . . . . . . . . . Overloaded Fab Kills . | . . . . . . . . . . . . . . . . . . . . Hacking | -11 -10 -10 -9 -9 -9 -8 -8 -8 -8 -8 -6 -6 -6 -6 -5 -5 -5 -5 -5 --------- Run | Yrd Mat Min Mat Min Exi Min Mat Sto Rec Scr Fac Was Fac DSF Fac Was Fac Gar Fac Machines Accessed 71 | . 4 1 5 1 1 . 8 11 2 3 4 . 6 . 12 . 7 3 3 Terminals 40 | . 3 . 4 1 . . 7 8 . . 1 . 3 . 6 . 3 3 1 Fabricators 8 | . . . . . . . . . . . 1 . . . 3 . 3 . 1 Repair Stations 5 | . . . 1 . . . 1 1 . . . . . . 1 . . . 1 Recycling Units 6 | . 1 . . . . . . 1 2 . . . 1 . 1 . . . . Scanalyzers 2 | . . . . . . . . . . . 1 . 1 . . . . . . Garrison Access 5 | . . . . . . . . 1 . . 1 . 1 . 1 . 1 . . Total Hacks 213 | . 10 1 20 3 4 . 29 26 4 8 18 . 15 . 40 . 24 5 6 Successful 122 | . 4 1 13 . 4 . 11 15 4 8 15 . 11 . 12 . 18 1 5 Failed 91 | . 6 . 7 3 . . 18 11 . . 3 . 4 . 28 . 6 4 1 Catastrophic 16 | . 2 . . . . . 3 3 . . . . . . 7 . . 1 . Database Lockouts . | . . . . . . . . . . . . . . . . . . . . Manual 88 | . 9 . 6 3 . . 14 12 2 . 6 . 4 . 19 . 11 1 1 Terminals 122 | . 8 . 15 3 . . 28 20 . . 5 . 7 . 19 . 10 5 2 Fabricators 34 | . . . . . . . . . . . 6 . . . 13 . 13 . 2 Repair Stations 12 | . . . 5 . . . 1 2 . . . . . . 2 . . . 2 Recycling Units 16 | . 2 . . . . . . 2 4 . . . 5 . 3 . . . . Scanalyzers 7 | . . . . . . . . . . . 5 . 2 . . . . . . Garrison Access 9 | . . . . . . . . 2 . . 2 . 1 . 3 . 1 . . Terminal Hacks 51 | . 2 1 7 . 4 . 8 6 . 8 3 . 4 . 4 . 2 1 1 Record 7 | . . . . . 4 . . . . 3 . . . . . . . . . Part Schematic 3 | . 1 . . . . . 1 1 . . . . . . . . . . . Robot Analysis 5 | . 1 . . . . . . . . 4 . . . . . . . . . Prototype ID Bank 4 | . . . 1 . . . 2 1 . . . . . . . . . . . Open Door 3 | . . 1 . . . . . 2 . . . . . . . . . . . Open DSF 2 | . . . . . . . . . . . . . 1 . . . . . 1 Branch Access Points 3 | . . . 1 . . . 1 . . . 1 . . . . . . . . Emergency Access Points 1 | . . . . . . . . . . . . . . . . . . 1 . Terminal Index 3 | . . . . . . . . . . . . . 1 . 1 . 1 . . Fabricator Index 1 | . . . . . . . . . . . . . 1 . . . . . . Unreport Threat 1 | . . . . . . . . 1 . . . . . . . . . . . Locate Traps 5 | . . . 1 . . . 1 1 . . . . 1 . 1 . . . . Hauler Manifests 2 | . . . 1 . . . 1 . . . . . . . . . . . . Registered Components 2 | . . . 1 . . . . . . . 1 . . . . . . . . Zone Layout 8 | . . . 2 . . . 2 . . . 1 . . . 2 . 1 . . Proto ID Catalog 1 | . . . . . . . . . . 1 . . . . . . . . . Fabricator Hacks 16 | . . . . . . . . . . . 3 . . . 5 . 7 . 1 Network Status 2 | . . . . . . . . . . . 1 . . . . . 1 . . Load Schematic 10 | . . . . . . . . . . . 1 . . . 4 . 4 . 1 Build 4 | . . . . . . . . . . . 1 . . . 1 . 2 . . Repair Station Hacks 8 | . . . 4 . . . . 2 . . . . . . . . . . 2 Scan Component 4 | . . . 2 . . . . 1 . . . . . . . . . . 1 Repair 4 | . . . 2 . . . . 1 . . . . . . . . . . 1 Recycling Unit Hacks 6 | . 1 . . . . . . 1 2 . . . 1 . 1 . . . . Report Inventory 5 | . 1 . . . . . . 1 2 . . . 1 . . . . . . Retrieve Components 1 | . . . . . . . . . . . . . . . 1 . . . . Scanalyzer 5 | . . . . . . . . . . . 4 . 1 . . . . . . Insert Component 2 | . . . . . . . . . . . 2 . . . . . . . . Analyze 2 | . . . . . . . . . . . 2 . . . . . . . . Retrieve Study 1 | . . . . . . . . . . . . . 1 . . . . . . Garrison Access Hacks 3 | . . . . . . . . . . . . . 1 . 1 . 1 . . Unlock Access 1 | . . . . . . . . . . . . . . . . . 1 . . Seal Access 2 | . . . . . . . . . . . . . 1 . 1 . . . . Unauthorized Hacks 33 | . 1 . 2 . . . 3 6 2 . 5 . 4 . 1 . 8 . 1 Terminals 13 | . . . 2 . . . 2 5 . . 1 . . . . . 3 . . Botnet 5 | . . . 1 . . . 1 1 . . 1 . . . . . 1 . . Operators 3 | . . . 1 . . . 1 . . . . . . . . . 1 . . Skim 5 | . . . . . . . . 4 . . . . . . . . 1 . . Fabricators 10 | . . . . . . . . . . . 3 . . . 1 . 5 . 1 Prioritize 2 | . . . . . . . . . . . 1 . . . . . 1 . . Liberate 2 | . . . . . . . . . . . 1 . . . . . 1 . . Haulers 2 | . . . . . . . . . . . 1 . . . . . 1 . . Recompile 4 | . . . . . . . . . . . . . . . 1 . 2 . 1 Repair Stations 1 | . . . . . . . 1 . . . . . . . . . . . . Patch 1 | . . . . . . . 1 . . . . . . . . . . . . Recycling Units 8 | . 1 . . . . . . 1 2 . . . 4 . . . . . . Monitor 1 | . . . . . . . . . . . . . 1 . . . . . . Reject 1 | . . . . . . . . . . . . . 1 . . . . . . Recyclers 2 | . . . . . . . . 1 . . . . 1 . . . . . . Mask 1 | . . . . . . . . . . . . . 1 . . . . . . Tunnel 3 | . 1 . . . . . . . 2 . . . . . . . . . . Scanalyzers . | . . . . . . . . . . . . . . . . . . . . Garrison Access 1 | . . . . . . . . . . . 1 . . . . . . . . Reprogram 1 | . . . . . . . . . . . 1 . . . . . . . . Data Cores Recovered 3 | . 1 . . . . . . 1 . . . . 1 . . . . . . Used . | . . . . . . . . . . . . . . . . . . . . Hacking Detections 52 | . 4 . 4 1 . . 7 8 . . 4 . 3 . 12 . 5 3 1 Full Trace Events 12 | . . . . . . . 5 1 . . 2 . . . 4 . . . . Feedback Events . | . . . . . . . . . . . . . . . . . . . . Feedback Blocked . | . . . . . . . . . . . . . . . . . . . . Robot Schematics Acquired . | . . . . . . . . . . . . . . . . . . . . Robots Built 1 | . . . . . . . . . . . 1 . . . . . . . . Authchips . | . . . . . . . . . . . . . . . . . . . . Time 81 | . . . . . . . . . . . 81 . . . . . . . . Total Robot Build Rating 1 | . . . . . . . . . . . 1 . . . . . . . . Part Schematics Acquired 6 | . 1 . . . . . 1 1 . 1 2 . . . . . . . . Parts Built 3 | . . . . . . . . . . . . . . . 1 . 2 . . Authchips 3 | . . . . . . . . . . . . . . . 1 . 2 . . Time 190 | . . . . . . . . . . . . . . . 76 . 114 . . Total Part Build Rating 15 | . . . . . . . . . . . . . . . 5 . 10 . . Part Studies Acquired 1 | . . . . . . . . . . . . . 1 . . . . . . Parts Repaired 4 | . . . 2 . . . . 1 . . . . . . . . . . 1 Time 193 | . . . 93 . . . . 32 . . . . . . . . . . 68 Parts Recycled . | . . . . . . . . . . . . . . . . . . . . Recycled Matter . | . . . . . . . . . . . . . . . . . . . . Retrieved Matter . | . . . . . . . . . . . . . . . . . . . . Retrieved Components . | . . . . . . . . . . . . . . . . . . . . Parts Scanalyzed 2 | . . . . . . . . . . . 2 . . . . . . . . Part Schematics Acquired 2 | . . . . . . . . . . . 2 . . . . . . . . Parts Damaged . | . . . . . . . . . . . . . . . . . . . . Bothacking | -11 -10 -10 -9 -9 -9 -8 -8 -8 -8 -8 -6 -6 -6 -6 -5 -5 -5 -5 -5 ------------ Run | Yrd Mat Min Mat Min Exi Min Mat Sto Rec Scr Fac Was Fac DSF Fac Was Fac Gar Fac Used RIF Installer 1 | . . . . . . . . . . . . . . . . . . 1 . Robots Hacked 17 | . . . . . 4 . . . 1 1 . . . . 1 . 1 . 9 Non-combat 13 | . . . . . 3 . . . 1 . . . . . 1 . 1 . 7 Combat 4 | . . . . . 1 . . . . 1 . . . . . . . . 2 Robot Hacks Applied 19 | . . . . . 4 . . . 1 1 . . . . 1 . 2 . 10 parse_system 6 | . . . . . 4 . . . . 1 . . . . . . . . 1 start_evac 3 | . . . . . . . . . . . . . . . . . . . 3 find_chute 1 | . . . . . . . . . . . . . . . 1 . . . . map_walls 1 | . . . . . . . . . . . . . . . . . . . 1 map_earth 1 | . . . . . . . . . . . . . . . . . . . 1 find_fabricator 1 | . . . . . . . . . . . . . . . . . 1 . . find_dsf 1 | . . . . . . . . . . . . . . . . . 1 . . find_recycling 1 | . . . . . . . . . 1 . . . . . . . . . . emergency_deploy 1 | . . . . . . . . . . . . . . . . . . . 1 link_fov 2 | . . . . . . . . . . . . . . . . . . . 2 amplify_resonance 1 | . . . . . . . . . . . . . . . . . . . 1 Relay Couplers Released 20 | . . . . . . . 1 . . . . . . . . . . 19 . Machine Destruction 20 | . . . . . . . 1 . . . . . . . . . . 19 . Attached 2 | . . . . . . . . . . . . . . . . . . . 2 Fabnet Peak Effective % . | . . . . . . . . . . . . . . . . . . . . Robots Rewired 17 | . . . . . . . . . 12 . 2 . . . . . . 3 . Allies Hacked 7 | . . . . . . . . . . . . . . . 1 . 5 . 1 Hacks Repelled . | . . . . . . . . . . . . . . . . . . . . Allies | -11 -10 -10 -9 -9 -9 -8 -8 -8 -8 -8 -6 -6 -6 -6 -5 -5 -5 -5 -5 -------- Run | Yrd Mat Min Mat Min Exi Min Mat Sto Rec Scr Fac Was Fac DSF Fac Was Fac Gar Fac Total Allies 66 | . . . . . . . . 10 12 . 4 . . . 18 3 11 3 5 Largest Group 22 | . . . . . . . . 10 22 22 2 . . . 11 7 8 8 3 Highest-Rated Group 361 | . . . . . . . . 173 361 361 34 . . . 107 56 128 166 60 Highest-Rated Ally 46 | . . . . . . . . 29 29 29 25 . . . 14 10 41 46 40 Total Orders 27 | . . . . . . . . . . 25 . . . . . . . . 2 STAY 13 | . . . . . . . . . . 12 . . . . . . . . 1 ROAM 1 | . . . . . . . . . . 1 . . . . . . . . . FOLLOW 12 | . . . . . . . . . . 11 . . . . . . . . 1 PICKUP 1 | . . . . . . . . . . 1 . . . . . . . . . Ally Attacks 553 | . . . . . . . . . 12 101 8 . . . 125 . 182 80 45 Total Damage 7952 | . . . . . . . . . 178 1298 110 . . . 1651 . 2814 1235 666 Kills 100 | . . . . . . . . . 1 11 . . . . 22 . 39 16 11 Allies Corrupted 8 | . . . . . . . . . . 3 . . . . . . 2 1 2 Allies Melted 1 | . . . . . . . . . . . . . . . . . . . 1 Intel | -11 -10 -10 -9 -9 -9 -8 -8 -8 -8 -8 -6 -6 -6 -6 -5 -5 -5 -5 -5 ------- Run | Yrd Mat Min Mat Min Exi Min Mat Sto Rec Scr Fac Was Fac DSF Fac Was Fac Gar Fac Active Infowar (turns) 9571 | 52 390 . 2179 754 309 345 760 . . . 95 111 411 36 737 820 1671 273 628 Optics 1532 | . . . . . . . . . . . 95 111 411 36 249 . . 2 628 Sensors 3727 | . . . . . . . . . . . 43 111 352 15 444 820 1671 271 . Terrain 442 | 52 390 . . . . . . . . . . . . . . . . . . Structural 3225 | . . . 1028 754 309 345 760 . . . . . . . 29 . . . . Seismic 1151 | . . . 1151 . . . . . . . . . . . . . . . . Jamming 90 | . . . . . . . . . . . . . 57 . 33 . . . . Robot Analysis Total 5 | . 1 . . . . . . . . 4 . . . . . . . . . Derelict Logs Recovered 3 | . . 3 . . . . . . . . . . . . . . . . . Drone Launches . | . . . . . . . . . . . . . . . . . . . . Drone Recoveries . | . . . . . . . . . . . . . . . . . . . . Exploration | -11 -10 -10 -9 -9 -9 -8 -8 -8 -8 -8 -6 -6 -6 -6 -5 -5 -5 -5 -5 ------------- Run | Yrd Mat Min Mat Min Exi Min Mat Sto Rec Scr Fac Was Fac DSF Fac Was Fac Gar Fac Turns Passed 18023 | 126 570 628 2429 754 309 345 1621 935 438 2555 158 111 411 80 1388 823 1891 1576 875 Spaces Moved 12856 | 80 388 362 963 493 213 206 698 436 213 2604 341 264 961 73 1873 575 900 800 413 Core 236 | 7 . . . . . . . . . . . . . 2 227 . . . . Treads 2480 | . 2 . 22 . . . . . . . . . . . . 343 900 800 413 Legs . | . . . . . . . . . . . . . . . . . . . . Wheels 5562 | 73 386 362 941 493 213 206 698 436 213 1461 . . . . 80 . . . . Hover 1646 | . . . . . . . . . . . . . . . 1414 232 . . . Flight 2932 | . . . . . . . . . . 1143 341 264 961 71 152 . . . . Fastest Speed 26 | 50 100 115 140 140 140 140 113 128 128 26 26 26 26 26 30 50 160 158 158 Average Speed 105 | 95 122 142 168 142 140 140 138 128 128 84 26 26 26 33 52 125 161 160 158 Slowest Speed 320 | 100 160 145 320 145 140 140 210 145 128 165 29 87 26 87 300 240 166 166 158 Overloaded Moves 3 | . . . . . . . . . . 3 . . . . . . . . . Propulsion Burnouts . | . . . . . . . . . . . . . . . . . . . . Robots Hopped 26 | . . . . . . . . . . 11 6 . 2 4 3 . . . . Potential Cave-ins . | . . . . . . . . . . . . . . . . . . . . Cave-ins Triggered . | . . . . . . . . . . . . . . . . . . . . Exploration Rate (%) 54 | 5 53 45 60 95 64 51 57 73 31 84 13 96 15 66 47 96 26 96 13 Regions Visited 19 Branch Regions 7 Pre-discovered Areas 6 | . 1 2 . . 1 . . . 2 . . . . . . . . . . Known Exits Taken 4 | . . . 1 . . . 1 . . . . . 1 . . . 1 . . Unknown Exits Taken 9 | 1 1 1 . 1 1 1 . 1 1 1 . . . . . . . . . Scrap Searched 5 | . . . . 2 . . . . . 3 . . . . . . . . . Spaces Dug 39 | . . . . 6 . . . 12 . 1 4 . 8 . . . 2 5 1 Terrain Destroyed 359 | . 22 6 1 10 . . 5 64 3 1 4 . 8 . 32 . 18 97 88 Melee 13 | . . . . . . . . . . 1 4 . 8 . . . . . . Projectile 87 | . . . 1 . . . 5 19 3 . . . . . 2 . 18 19 20 AOE 257 | . 22 6 . 10 . . . 45 . . . . . . 30 . . 76 68 Terrain Rammed . | . . . . . . . . . . . . . . . . . . . . Walls Destroyed . | . . . . . . . . . . . . . . . . . . . . Machines Disabled . | . . . . . . . . . . . . . . . . . . . . Actions | -11 -10 -10 -9 -9 -9 -8 -8 -8 -8 -8 -6 -6 -6 -6 -5 -5 -5 -5 -5 --------- Run | Yrd Mat Min Mat Min Exi Min Mat Sto Rec Scr Fac Was Fac DSF Fac Was Fac Gar Fac Total 15948 | 104 443 420 1555 517 223 228 1064 678 356 2910 377 304 1092 98 2169 672 1179 1006 553 Wait 1406 | 2 6 16 361 6 . 5 99 103 103 265 4 28 83 1 95 53 117 38 21 Move 12798 | 79 387 361 962 492 212 205 697 435 212 2589 331 263 956 64 1867 574 900 799 413 Hop 17 | . . . . . . . . . . 4 4 . 2 4 3 . . . . Pick Up 178 | 4 13 6 26 2 2 . 25 10 2 8 1 2 4 1 23 9 17 19 4 Fast Attach 153 | 7 3 . 11 . . . 16 8 . 6 8 2 4 5 43 9 6 23 2 Attach 82 | . 1 3 10 1 2 1 13 2 . 3 4 1 . 3 17 . 11 5 5 Detach 27 | . . . 4 . . . 2 1 . . 3 . 1 . 12 1 1 1 1 Swap 128 | . 7 1 14 2 . 2 17 9 3 . . 2 9 1 8 5 17 10 21 Drop 206 | . 4 4 16 1 3 . 24 18 3 16 2 6 4 2 24 17 19 41 2 Fire 757 | 12 22 28 103 13 . 15 171 92 5 . . . . . 59 4 91 63 79 Melee 82 | . . . 1 . 4 . . . 24 18 13 . 11 11 . . . . . Ram 1 | . . . . . . . . . . . . . . 1 . . . . . Kick . | . . . . . . . . . . . . . . . . . . . . Crush 6 | . . . . . . . . . . . . . . . . . . 1 5 Escape Stasis 35 | . . . . . . . . . . . . . 15 5 15 . . . . Rewire 18 | . . . . . . . . . 4 . 7 . . . 1 . . 6 . Trap 54 | . . 1 47 . . . . . . 1 . . 3 . 2 . . . . Miscellaneous . | . . . . . . . . . . . . . . . . . . . . Route ------- -11/Scrapyard -10/Materials (discovered 2 exits: *Mat / *Min) -10/Mines (discovered 2 exits: *Mat x2) -9/Materials (discovered 5 exits: *Mat x3 / *Min x2) -9/Mines (discovered 3 exits: *Mat x2 / *Exi) -9/Exiles -8/Mines -8/Materials (discovered 4 exits: [*Fac x3] / *Sto) -8/Storage (discovered 2 exits: [*Fac] / *Rec) -8/Recycling -8/Scraptown -6/Factory (discovered 2 exits: *Low x2) -6/Waste -6/Factory (discovered 2 exits: *Fac / DSF) -6/DSF -5/Factory -5/Waste -5/Factory (discovered 2 exits: *Fac / Gar) -5/Garrison (discovered 3 exits: *Fac x3) -5/Factory History --------- Turn | Location | Event 5 | -11/Scrapyard | Discovered new exit (range 15) 127 | -11/Scrapyard | Entered Materials 185 | -10/Materials | Discovered new exit (range 11) 277 | -10/Materials | Discovered new exit (range 13) 310 | -10/Materials | Build established: Mutant 697 | -10/Materials | Entered Mines 700 | -10/Mines | Learned Materials emergency access door positions 713 | -10/Mines | Met a Derelict bent on vengeance 786 | -10/Mines | Found a hidden stash of uninstalled traps 905 | -10/Mines | Discovered new exit (range 8) 1008 | -10/Mines | Discovered new exit (range 6) 1179 | -10/Mines | Learned location of Storage (-8) 1184 | -10/Mines | Met a Derelict who couldn't figure out how to use a Trap Extractor 1230 | -10/Mines | Assembled infested the area 1235 | -10/Mines | Assisted by a Guerilla fighting off Assembled 1289 | -10/Mines | Core integrity fell below 50% 1321 | -10/Mines | Lost 5 parts (1p1n1u2w) 1325 | -10/Mines | Entered Materials 1325 | -9/Materials | Evolved 2 slots: Utility x1, Weapon x1 1801 | -9/Materials | Lost 4 parts (1p1n2u) 1889 | -9/Materials | Discovered new exit (range 3) 1989 | -9/Materials | Discovered new exit (range 11) 2057 | -9/Materials | Build established: Gunner 2435 | -9/Materials | Discovered new exit (range 3) 2486 | -9/Materials | Identified exit to Mines 2846 | -9/Materials | Discovered new exit (range 8) 3095 | -9/Materials | Repaired Arm. Wheel 3157 | -9/Materials | Repaired Corrupted Imp. Trap Extractor? 3269 | -9/Materials | Build established: Tank 3751 | -9/Materials | Build established: Mutant 3754 | -9/Materials | Entered Mines 3781 | -9/Mines | Discovered new exit (range 10) 3786 | -9/Mines | Received a Rocket Launcher from a helpful Derelict 3823 | -9/Mines | Deemed a non-threat by the Exiles lab entrance 3837 | -9/Mines | Discovered new exit (range 15) 4232 | -9/Mines | Build established: Tank 4442 | -9/Mines | Discovered new exit (range 9) 4508 | -9/Mines | Entered Exiles 4553 | -9/Exiles | Met 8R-AWN 4577 | -9/Exiles | Met EX-HEX 4630 | -9/Exiles | Met EX-DEC 4670 | -9/Exiles | Learned location of Zion (-6) 4693 | -9/Exiles | Met EX-BIN 4798 | -9/Exiles | Build established: Mutant 4803 | -9/Exiles | Discovered new exit (range 10) 4817 | -9/Exiles | Entered Mines 4976 | -8/Mines | Core integrity fell below 50% 5077 | -8/Mines | Discovered new exit (range 4) 5118 | -8/Mines | Build established: Tank 5162 | -8/Mines | Entered Materials 5162 | -8/Materials | Evolved 2 slots: Propulsion x1, Utility x1 5485 | -8/Materials | Build established: Gunner 5487 | -8/Materials | Identified exit to Storage 5776 | -8/Materials | Garrison activated, responded to threat 5911 | -8/Materials | Met 7R-MNS 5919 | -8/Materials | Attacked by 7R-MNS 5955 | -8/Materials | Lost 3 parts (2n1u) 6052 | -8/Materials | Core integrity fell below 50% 6060 | -8/Materials | 7R-MNS lamented failing the tripod run 6089 | -8/Materials | Lost 10 parts (1p3n3u3w) 6197 | -8/Materials | Discovered new exit (range 16) 6406 | -8/Materials | Discovered new exit (range 5) 6551 | -8/Materials | Discovered new exit (range 16) 6783 | -8/Materials | Entered Storage 6938 | -8/Storage | Build established: Scavenger-Tank 7162 | -8/Storage | Repaired Arm. Wheel 7355 | -8/Storage | Lost 3 parts (2n1u) 7404 | -8/Storage | Build established: Tank 7405 | -8/Storage | Discovered new exit (range 13) 7435 | -8/Storage | Core integrity fell below 20% 7487 | -8/Storage | Garrison activated, responded to threat 7652 | -8/Storage | Assisted by bots powering up and referring to "LRC-V3" 7695 | -8/Storage | Used back door to open Recycling access 7695 | -8/Storage | Discovered new exit (range 3) 7718 | -8/Storage | Entered Recycling 7718 | -8/Recycling | Accompanied by 10 allies 8014 | -8/Recycling | Scanned before Scraplab entrance 8032 | -8/Recycling | Entered Scraplab 8042 | -8/Recycling | Discovered new exit (range 2) 8156 | -8/Recycling | Entered Scraptown 8156 | -8/Scraptown | Accompanied by 22 allies 8167 | -8/Scraptown | Build established: Commander-Mutant 8206 | -8/Scraptown | Heard Great Nut preacher, LISTEN AND RECITE! 8291 | -8/Scraptown | Visited The Evicted 8314 | -8/Scraptown | Visited Cyclists 8325 | -8/Scraptown | Visited Assassins FH 8338 | -8/Scraptown | Visited IN-MT5's Study 8365 | -8/Scraptown | Visited CR-KLE's Repair Center 8397 | -8/Scraptown | Visited UFD Registry 8397 | -8/Scraptown | Registered with UFD as "Boltbrain" 8444 | -8/Scraptown | Visited Science Guys 8528 | -8/Scraptown | Visited Chapter 10 8557 | -8/Scraptown | Visited Supply Room 8578 | -8/Scraptown | Visited Analyses Database 8617 | -8/Scraptown | Visited DA-N13 Charitable Foundation 8624 | -8/Scraptown | Found DCF Scrap (28 items) 8656 | -8/Scraptown | Visited Junk Repository 8688 | -8/Scraptown | Visited Abandonware Association 8707 | -8/Scraptown | Visited Curators Association 8762 | -8/Scraptown | Visited Derelict Rescue Squad 9148 | -8/Scraptown | Learned abandonware demo "ERRANTS.EXE" 9619 | -8/Scraptown | Discovered new exit (range 11) 10158 | -8/Scraptown | Entered Cyclist Reading Room 10412 | -8/Scraptown | Build established: Commander-Sprinter 10593 | -8/Scraptown | Warned about trapping Scraptown 10642 | -8/Scraptown | CR-KLE repaired 3 parts 10663 | -8/Scraptown | Attacked by Scraptown defenders 10692 | -8/Scraptown | Found Prototype Device 10711 | -8/Scraptown | Entered Factory 10711 | -6/Factory | Evolved 4 slots: Propulsion x1, Utility x3 10711 | -6/Factory | Identified Exp. Recalibrator 10737 | -6/Factory | Lost 15 allies 10817 | -6/Factory | Identified exit to Lower Caves 10840 | -6/Factory | Fabricated A-02 Transporter? 10869 | -6/Factory | Manually triggered Chute Trap 10869 | -6/Factory | Sucked down chute 10869 | -6/Factory | Entered Waste 10869 | -6/Waste | The area was eerily silent 10940 | -6/Waste | Discovered new exit (range 21) 10980 | -6/Waste | Identified exit to Factory 10980 | -6/Waste | Entered Factory 11084 | -6/Factory | Discovered new exit (range 5) 11239 | -6/Factory | Identified exit to Factory 11391 | -6/Factory | Identified exit to DSF 11391 | -6/Factory | Entered DSF 11412 | -6/DSF | Additional patrols routed to DSF 11433 | -6/DSF | Core integrity fell below 50% 11441 | -6/DSF | Core integrity fell below 20% 11459 | -6/DSF | Lost 5 parts (1p2n2u) 11459 | -6/DSF | Discovered exit to Factory (range 15) 11471 | -6/DSF | Entered Factory 11471 | -5/Factory | Evolved 2 slots: Power x1, Propulsion x1 11576 | -5/Factory | Lost 5 parts (3n2u) 11677 | -5/Factory | Lost 9 parts (2p1n2u4w) 11853 | -5/Factory | Build established: Mutant 11979 | -5/Factory | Fabricated IN-MT5's Pitchfork "Insurrection"? 12055 | -5/Factory | Reprogrammed and armed K-01 Serf 12098 | -5/Factory | Reprogrammed and armed K-01 Serf 12135 | -5/Factory | Reprogrammed and armed K-01 Serf 12164 | -5/Factory | Reprogrammed and armed K-01 Serf 12173 | -5/Factory | Reprogrammed and armed K-01 Serf 12182 | -5/Factory | Reprogrammed and armed K-01 Serf 12252 | -5/Factory | P-70 Sage assimilated allied K-01 Serf 12257 | -5/Factory | Reprogrammed and armed K-01 Serf 12261 | -5/Factory | P-70 Sage assimilated allied K-01 Serf 12272 | -5/Factory | Reprogrammed and armed K-01 Serf 12295 | -5/Factory | Reprogrammed and armed K-01 Serf 12321 | -5/Factory | Reprogrammed and armed K-01 Serf 12355 | -5/Factory | Reprogrammed and armed K-01 Serf 12358 | -5/Factory | Reprogrammed and armed K-01 Serf 12398 | -5/Factory | Reprogrammed and armed K-01 Serf 12404 | -5/Factory | Reprogrammed and armed K-01 Serf 12404 | -5/Factory | Reprogrammed and armed K-01 Serf 12405 | -5/Factory | Reprogrammed and armed K-01 Serf 12437 | -5/Factory | Reprogrammed and armed K-01 Serf 12532 | -5/Factory | Lost 4 allies 12607 | -5/Factory | Reprogrammed and armed K-01 Serf 12677 | -5/Factory | Reprogrammed and armed K-01 Serf 12705 | -5/Factory | Reprogrammed and armed K-01 Serf 12727 | -5/Factory | Build established: Skirmisher 12787 | -5/Factory | Discovered new exit (range 14) 12799 | -5/Factory | Identified exit to Factory 12859 | -5/Factory | Manually triggered Chute Trap 12859 | -5/Factory | Sucked down chute 12859 | -5/Factory | Entered Waste 12859 | -5/Waste | The area was eerily silent 12859 | -5/Waste | Met up with 3 allies sucked down the chute earlier 12914 | -5/Waste | 4 allies followed down the chute 12997 | -5/Waste | Discovered new exit (range 13) 13315 | -5/Waste | Found Damper Plating 13407 | -5/Waste | Found Damper Plating 13602 | -5/Waste | Build established: Scavenger-Tank 13670 | -5/Waste | Identified exit to Factory 13682 | -5/Waste | Entered Factory 13682 | -5/Factory | Accompanied by 7 allies 14160 | -5/Factory | Lost 4 allies 14419 | -5/Factory | Fabricated IN-MT5's Pitchfork "Insurrection"? 14520 | -5/Factory | Fabricated IN-MT5's Pitchfork "Insurrection"? 14541 | -5/Factory | Spotted B-75 Beast 14551 | -5/Factory | Reprogrammed and armed K-01 Serf 14557 | -5/Factory | Reprogrammed and armed K-01 Serf 14579 | -5/Factory | Allies destroyed B-75 Beast 14602 | -5/Factory | Garrison activated, responded to threat 14607 | -5/Factory | Core integrity fell below 50% 14619 | -5/Factory | Reprogrammed and armed K-01 Serf 14749 | -5/Factory | Reprogrammed and armed K-01 Serf 14871 | -5/Factory | Reprogrammed and armed K-01 Serf 15043 | -5/Factory | P-70 Sage assimilated allied K-01 Serf 15054 | -5/Factory | Reprogrammed and armed K-01 Serf 15067 | -5/Factory | Reprogrammed and armed K-01 Serf 15138 | -5/Factory | Discovered exit to Factory (range 15) 15157 | -5/Factory | Reprogrammed and armed K-01 Serf 15182 | -5/Factory | First assault squad dispatched 15524 | -5/Factory | Reprogrammed and armed K-01 Serf 15554 | -5/Factory | Reprogrammed and armed K-01 Serf 15572 | -5/Factory | Identified exit to Garrison 15573 | -5/Factory | Entered Garrison 15573 | -5/Garrison | Accompanied by 5 allies 15594 | -5/Garrison | Phase Generator disabled 15663 | -5/Garrison | Heavy support dispatched to Factory 15682 | -5/Garrison | Heavy support dispatched to Factory 15808 | -5/Garrison | Garrison Relay disabled 15891 | -5/Garrison | Triggered checkpoint 16125 | -5/Garrison | Discovered new exit (range 13) 16125 | -5/Garrison | Spotted B-75 Beast 16142 | -5/Garrison | Destroyed B-75 Beast 16279 | -5/Garrison | Triggered checkpoint 16307 | -5/Garrison | Triggered checkpoint 16327 | -5/Garrison | Heavy support dispatched to Factory 16394 | -5/Garrison | Garrison Relay disabled 16406 | -5/Garrison | Garrison Relay disabled 16453 | -5/Garrison | Spotted B-75 Beast 16459 | -5/Garrison | Destroyed B-75 Beast 16470 | -5/Garrison | Build established: Gunner 16528 | -5/Garrison | Triggered checkpoint 16625 | -5/Garrison | Installed Relay Interface Framework 16668 | -5/Garrison | Garrison Relay disabled 16702 | -5/Garrison | Discovered new exit (range 14) 16721 | -5/Garrison | Identified exit to Factory 16795 | -5/Garrison | Triggered checkpoint 16851 | -5/Garrison | Triggered checkpoint 16877 | -5/Garrison | Garrison Relay disabled 16945 | -5/Garrison | Discovered exit to Factory (range 15) 17078 | -5/Garrison | H-XX Assembler disabled 17149 | -5/Garrison | Entered Factory 17149 | -5/Factory | Accompanied by 1 ally 17194 | -5/Factory | Reprogrammed and armed K-01 Serf 17230 | -5/Factory | Core integrity fell below 20% 17257 | -5/Factory | Reprogrammed and armed K-01 Serf 17362 | -5/Factory | Repaired Hvy. Linear Accelerator? 17449 | -5/Factory | First assault squad dispatched 17449 | -5/Factory | Reprogrammed and armed K-01 Serf 17531 | -5/Factory | Build established: Mutant 17539 | -5/Factory | Lost 3 allies 17705 | -5/Factory | High security lockdown imminent 17754 | -5/Factory | Reprogrammed and armed K-01 Serf 17784 | -5/Factory | Reprogrammed and armed K-01 Serf 17785 | -5/Factory | High security lockdown engaged 17973 | -5/Factory | Garrison activated, responded to threat 18020 | -5/Factory | Build established: Gunner 18024 | -5/Factory | Destroyed by Y-64 Sentinel with Wave Gun Last Messages --------------- 18017_ Critical hit (Burn: +37). 18017_ Imp. Cooling System destroyed. 18018_ Acquired 13 matter. 18018_ Slammed into Y-64 Sentinel. 18019_ Acquired 25 matter. 18019_ Penetrated by Slug. 18019_ Slammed into Y-64 Sentinel. 18020_ Acquired 22 matter. 18020_ Slug penetrates Wall. 18021_ QZZ0 IZPC GSA9T#XX4HYZ|E1KFUABY 18021_ C-45 Heavy ARC bursts open, deploying its payload. 18021_ G-67 Veteran unfolds itself. 18021_ B-60 Warrior unfolds itself. 18021_ G-50 Soldier unfolds itself. 18021_ B-60 Warrior unfolds itself. 18021_ M-28 Smith unfolds itself. 18021_ Acquired 28 matter. 18022_ Slug penetrates Wall. 18023_ Penetrated by Slug. Map ----- +----------------------------------------------------+ | ########!= ### #????????????????????????????? | | %%%%+=! ##########????????????????????????????? | | %%#=%!## ###+############?????????????? | | %#!!%## ????????????? | | """" %#=!% * ????????????? | | """" #*%= ! [" ???????????? | | """" # =%%=%*= ???????????? | | """" ######=[![[! ???????????? | | ######|%! %[!"#########+##????????????????? | | ##+###########"*=[="####?????????????????????????? | | # #![%####"######????????????????????? | | # #[%!" #????????????????????? | | # % " = #????????????????????? | | = # # #????????????????????? | | +### "% # #????????????????????? | | #### % " # #????????????????????? | | ### / [ #????????????????????? | | #### # %*[= #????????????????????? | | %#### # =[%= #????????????????????? | | ##### # ####/######????????????????????? | | #### #??# #?????????????????????????? | | #### #??#Y#???############??????????? | | ##### # #### ###? ? ?????????? | | #???# # ##YsY # """"""""" ???????? | | +?? ###### Y[%% # ????????? | | #?######?##### @ """""""??????????????? | | ##????????????# # ????????? | | ??????????????###+## # " " #??????? | | ???????????????????##b ##? " " #??????? | | ????????????????????# #??""G"" #??????? | | ????????????????????#m #??? #??????? | | ????????????????????#gg #???###############??????? | | ????????????????????#%" #????????????????????????? | | ????????????????????# #????????????????????????? | | ????????????????????# #????????????????????????? | | ????????????????????# #????????????????????????? | | ????????????????????# #????????????????????????? | | ????????????????????# #????????????????????????? | | ????????????????????# #????????????????????????? | | ????????????????????# #????????????????????????? | | ????????????????????# ?????????????????????????? | | ????????????????????# ?????????????????????????? | | ????????????????????# ?????????????????????????? | | ???????????????????? ?????????????????????????? | | ???????????????????? ?????????????????????????? | | ?????????????????????????????????????????????????? | | ?????????????????????????????????????????????????? | | ?????????????????????????????????????????????????? | | ?????????????????????????????????????????????????? | | ?????????????????????????????????????????????????? | +----------------------------------------------------+ Best States ------------- Heat Dissipation 94 Coolant Potential 80 Energy Generation 45 Energy Capacity 600 Matter Stores 300 Matter Capacity 300 Sight Range 22 Robot Scan Range 16 Terrain Scan Range 16 Terrain Scan Density 10 Jamming Range 16 Additional Mass Support 20 Corruption Block 5 Armor Coverage 300 Core Shielding 90 Propulsion Shielding 66 Weapon Cycling 25 Evasion (%) 64 Target Analysis 6 Core Analysis 6 Recoil Reduction 6 Kinecelleration 30 Offensive Hacking 30 Relay Coupler Types 1 Relay Coupler Value 32 Authchip Count 2 Trap Extractor Capacity 6 Item Schematics ----------------- Huge Storage Unit | -10/Materials | Hacked Hacking Suite | -8/Materials | Hacked Corruption Screen | -8/Storage | Hacked IN-MT5's Pitchfork "Insurrection" | -8/Scraptown | Archive CPS Tube | -6/Factory | Scanalyzed Cld. VTOL Module | -6/Factory | Scanalyzed Robot Schematics ------------------ None Fabricated ------------ A-02 Transporter | x1 | -6/Factory | Preloaded IN-MT5's Pitchfork "Insurrection" | x1 | -5/Factory | Authchip IN-MT5's Pitchfork "Insurrection" | x1 | -5/Factory | Authchip IN-MT5's Pitchfork "Insurrection" | x1 | -5/Factory | Authchip Repaired ---------- Arm. Wheel | 13% | -9/Materials Imp. Trap Extractor | 89% | -9/Materials | Corrupted Arm. Wheel | 20% | -8/Storage Hvy. Linear Accelerator | 37% | -5/Factory Studied --------- Surge Thruster | -6/Factory | Hacked Alien Tech Used ----------------- None Achievements -------------- None Challenges ------------ None Game ------ Seed AmuletHelicalFirepult Manual? 0 Play Time 03:48:56 Cumulative 1024.4 hours Start 2025.11.01 @ 12:13:31 End 2025.11.01 @ 16:04:48 Sessions 1 Manual Loads 0 Difficulty Rogue Special Mode None Game No. 372 Rogue 367 Adventurer 4 Explorer 1 Win Type - Total 21 Types 13/3/1/1/0/1/0/0/1/1 Lore% 96 Gallery% 94 Achievement% 78 Wizard Run 0 Options --------- Layout 2 ASCII 0 Keyboard 0 Movement Numpad Keybinds 0 Fullscreen 2 Font 24/Smallcaps Map View 50x44 Zoom Use 0% Tactical HUD 1 Map Filters NONE Filters NONE Steam 1 RUN: 3ae2f00d-3787-4afb-bb2f-5793ae2a9aef